Cogmind - Beta 12 X1 @@@ ROGUE MODE // 2022.08.03 @ 17:04:18 Player: Terminus Result: Destroyed by D-53 Grenadier with Mini Grenade Launcher Performance ------------- Evolutions (0) 0 Regions Visited (2) 400 Robots Destroyed (24) 120 Value Destroyed (547) 547 Prototype IDs (2) 40 Alien Tech Used (0) 0 Bonus (0) 0 TOTAL SCORE: 1107 Bonus ------- None Cogmind --------- Core Integrity 0/250 Matter 285/300 Energy 36/100 System Corruption 0% Temperature Cool (4) Movement Core (300) Ox5 Location -10/Mines Parts ------- > --- POWER (1) -------- (None) > --- PROPULSION (2) --- (None) > --- UTILITY (2) ------ Heat Sink Medium Storage Unit > --- WEAPON (2) ------- Beam Rifle Beam Rifle > --- INVENTORY (10) --- Improved Ion Engine Improved Ion Engine Heat Sink EM Pulse Gun Assault Rifle Grenade Launcher Hammer Peak State ------------ > --- POWER ------------ Improved Ion Engine > --- PROPULSION ------- Light Treads Light Treads > --- UTILITY ---------- Heat Sink Medium Storage Unit > --- WEAPON ----------- Beam Rifle Beam Rifle > --- INVENTORY -------- Improved Ion Engine Improved Ion Engine EM Pulse Gun Beam Rifle Beam Rifle Grenade Launcher [Rating: 11] Favorites ----------- Power Improved Ion Engine Engine Improved Ion Engine Propulsion Light Treads Treads Light Treads Utility Medium Storage Unit Device Heat Sink Storage Medium Storage Unit Weapon Beam Rifle Energy Gun Beam Rifle Ballistic Gun Light Assault Rifle Launcher Grenade Launcher Build | -11 -10 -10 ------- Run | Scr Mat Min Slots Evolved . | . . . Power . | . . . Propulsion . | . . . Utility . | . . . Weapon . | . . . Parts Attached 20 | 5 13 2 Power 2 | 1 1 . Engine 2 | 1 1 . Core . | . . . Reactor . | . . . Propulsion 3 | 2 1 . Treads 3 | 2 1 . Leg . | . . . Wheel . | . . . Hover . | . . . Flight . | . . . Utility 3 | 1 2 . Device 1 | . 1 . Storage 2 | 1 1 . Processor . | . . . Hackware . | . . . Protection . | . . . Artifact . | . . . Weapon 12 | 1 9 2 Energy Gun 8 | . 6 2 Energy Cannon . | . . . Ballistic Gun 2 | 1 1 . Ballistic Cannon . | . . . Launcher 2 | . 2 . Special Weapon . | . . . Impact Weapon . | . . . Slashing Weapon . | . . . Piercing Weapon . | . . . Special Melee Weapon . | . . . Unidentified Prototypes . | . . . Parts Lost 6 | . 1 5 Power 1 | . . 1 Propulsion 3 | . 1 2 Utility . | . . . Weapon 2 | . . 2 Highest Loss Streak 5 | . 1 5 To Critical Strikes . | . . . Average Slot Usage (%) 88 | . 87 98 Engine 14 | . 14 14 Treads 27 | . 27 26 Device 7 | . 5 14 Storage 14 | . 14 14 Energy Gun 19 | . 17 28 Ballistic Gun 4 | . 5 . Naked Turns . | . . . Heaviest Build 24 | 11 24 24 Greatest Support 40 | 40 40 40 Greatest Overweight (x) 1 | 1 . . Average Overweight (x) . | . . . Largest Inventory Capacity 10 | 8 10 10 Average Capacity 9 | 7 9 10 Most Carried 9 | 3 8 9 Average Carried 5 | 1 5 8 Final Capacity 10 | 8 10 10 Final Carried 8 | 2 8 7 Class Distribution -------------------- 100% | Mutant Dominant Class ---------------- Mutant | -10/Materials Mutant | -10/Mines Resources | -11 -10 -10 ----------- Run | Scr Mat Min Matter Collected 485 | 242 183 60 Remotely . | . . . Salvage Created 840 | . 743 97 Parts 41 | . 39 2 Haulers Intercepted 1 | . 1 . Recyclers Shooed 3 | . 3 . Parts Field Recycled . | . . . Retrieved Matter . | . . . Parts Self-Destructed . | . . . Prevented . | . . . Kills | -11 -10 -10 ------- Run | Scr Mat Min Combat Hostiles Destroyed 17 | . 15 2 Guns 10 | . 8 2 AOE 7 | . 7 . Classes Destroyed 6 | . 6 . Builder 1 | . 1 . Hauler 1 | . 1 . Recycler 3 | . 3 . Watcher 2 | . 2 . Swarmer 6 | . 6 . Grunt 11 | . 9 2 Best Kill Streak 6 | . 6 2 Combat Bots Only 4 | . 4 2 Max Kills in Single Turn 2 | . 2 1 Gunslinging 1 | . 1 . Exploded 2 | . 2 . Melee . | . . . Uniques/NPCs Destroyed . | . . . Combat | -11 -10 -10 -------- Run | Scr Mat Min Damage Taken 993 | . 516 477 Core 265 | . 84 181 Absorbed by Shields . | . . . Core Remaining (%) 100 | 100 . . Volleys Fired 73 | . 65 8 Largest 2 | . 2 2 Hottest 112 | . 112 112 Shots Fired 117 | . 101 16 Gun 110 | . 94 16 Cannon . | . . . Launcher 7 | . 7 . Special . | . . . Kinetic 40 | . 40 . Thermal 64 | . 48 16 Explosive 7 | . 7 . Electromagnetic 6 | . 6 . Robot Hit Streak 15 | . 15 5 Robot Miss Streak 2 | . 2 2 Penetration Max . | . . . Secondary Targets 3 | . 2 1 Max Gunslinging Chain 1 | . 1 1 Shots Hit Robots 84 | . 73 11 Core Hits 39 | . 35 4 Critical Kills . | . . . Critical Parts Destroyed . | . . . Critical Strikes 7 | . 3 4 Burn 7 | . 3 4 Melee Attacks . | . . . Impact . | . . . Slashing . | . . . Piercing . | . . . Sneak Attacks . | . . . Combat Hostiles . | . . . Follow-up Attacks . | . . . Damage Inflicted 1332 | . 1158 174 Guns 996 | . 822 174 Cannons . | . . . Explosions 327 | . 327 . Melee . | . . . Ramming 9 | . 9 . Kinetic 264 | . 264 . Thermal 698 | . 524 174 Explosive 288 | . 288 . Electromagnetic 73 | . 73 . Impact . | . . . Slashing . | . . . Piercing . | . . . Highest Corruption . | . . . Average Corruption . | . . . Corruption Purged . | . . . Corruption Blocked . | . . . Overload Shots . | . . . Overflow Damage 23 | . 23 . Projectiles . | . . . Explosions 23 | . 23 . Melee . | . . . Knockbacks . | . . . Impact . | . . . Kinetic . | . . . Secondary . | . . . Self-Inflicted Damage 98 | . 98 . Shots 3 | . 3 . Rammed 4 | . 4 . Targets Rammed 5 | . 5 . Kicked . | . . . Crushed 1 | . 1 . Highest Temperature 300 | . 300 159 Average Temperature 99 | . 106 57 Received Heat Transfer 285 | . 222 63 Siege Activations . | . . . Robots Corrupted . | . . . Combat Hostiles . | . . . Parts Fried . | . . . Impact Corruptions . | . . . Robots Melted . | . . . Combat Hostiles . | . . . Parts Melted 4 | . 3 1 Heat Transferred 2162 | . 1422 740 Parts Sabotaged . | . . . Parts Stolen . | . . . Parts Stripped . | . . . Power Chain Reactions 1 | . 1 . Missiles Intercepted . | . . . Alert | -11 -10 -10 ------- Run | Scr Mat Min Peak Influence 338 | . 338 196 Initial 131 | . . 131 Average 161 | . 169 178 Maximum Alert Level 1 | . 1 . Low Security (%) 66 | 100 58 100 Level 1 33 | . 41 . Level 2 . | . . . Level 3 . | . . . Level 4 . | . . . Level 5 . | . . . High Security . | . . . Max Security . | . . . Squads Dispatched 3 | . 3 . Investigation 2 | . 2 . Extermination . | . . . Reinforcement 1 | . 1 . Assault . | . . . Garrison . | . . . Intercept . | . . . Searches Triggered . | . . . Construction Impeded . | . . . Haulers Reinforced . | . . . Active Scanning Responses . | . . . Cargo Convoy Interrupts . | . . . Stealth | -11 -10 -10 --------- Run | Scr Mat Min Distress Signals . | . . . Communications Jammed . | . . . Distress Signals . | . . . Times Spotted 25 | . 22 3 Peak Tracking Total 3 | . 3 2 Tactical Retreats 1 | . 1 . Traps | -11 -10 -10 ------- Run | Scr Mat Min Traps Triggered 2 | . 2 . Indirectly . | . . . Trap Hack Attempts . | . . . Triggered . | . . . Disarmed . | . . . Reprogrammed . | . . . Reused . | . . . Traps Extracted . | . . . Installed . | . . . Triggered . | . . . Machines | -11 -10 -10 ---------- Run | Scr Mat Min Machines Disabled 3 | . 3 . Max in Single Turn 1 | . 1 . Machines Sabotaged . | . . . Garrisons Compromised . | . . . Overloaded Fab Kills . | . . . Hacking | -11 -10 -10 --------- Run | Scr Mat Min Machines Accessed 5 | . 5 . Terminals 5 | . 5 . Fabricators . | . . . Repair Stations . | . . . Recycling Units . | . . . Scanalyzers . | . . . Garrison Access . | . . . Total Hacks 18 | . 18 . Successful 12 | . 12 . Failed 5 | . 5 . Catastrophic . | . . . Database Lockouts 1 | . 1 . Manual 13 | . 13 . Terminals 18 | . 18 . Fabricators . | . . . Repair Stations . | . . . Recycling Units . | . . . Scanalyzers . | . . . Garrison Access . | . . . Terminal Hacks 7 | . 7 . Robot Analysis 2 | . 2 . Prototype ID Bank 1 | . 1 . Terminal Index 1 | . 1 . Alert Level 1 | . 1 . Hauler Manifests 1 | . 1 . Zone Layout 1 | . 1 . Fabricator Hacks . | . . . Repair Station Hacks . | . . . Recycling Unit Hacks . | . . . Scanalyzer . | . . . Garrison Access Hacks . | . . . Unauthorized Hacks 5 | . 5 . Terminals 5 | . 5 . Botnet 5 | . 5 . Fabricators . | . . . Repair Stations . | . . . Recycling Units . | . . . Scanalyzers . | . . . Garrison Access . | . . . Data Cores Recovered . | . . . Used . | . . . Hacking Detections 4 | . 4 . Full Trace Events . | . . . Feedback Events . | . . . Feedback Blocked . | . . . Robot Schematics Acquired . | . . . Robots Built . | . . . Authchips . | . . . Time . | . . . Total Robot Build Rating . | . . . Part Schematics Acquired . | . . . Parts Built . | . . . Authchips . | . . . Time . | . . . Total Part Build Rating . | . . . Parts Repaired . | . . . Time . | . . . Parts Recycled . | . . . Recycled Matter . | . . . Retrieved Matter . | . . . Retrieved Components . | . . . Parts Scanalyzed . | . . . Part Schematics Acquired . | . . . Parts Damaged . | . . . Bothacking | -11 -10 -10 ------------ Run | Scr Mat Min Used RIF Installer . | . . . Robots Hacked . | . . . Non-combat . | . . . Combat . | . . . Robot Hacks Applied . | . . . Relay Couplers Released . | . . . Fabnet Peak Effective % . | . . . Robots Rewired . | . . . Allies Hacked . | . . . Hacks Repelled . | . . . Allies | -11 -10 -10 -------- Run | Scr Mat Min Total Allies . | . . . Largest Group . | . . . Highest-Rated Group . | . . . Highest-Rated Ally . | . . . Total Orders . | . . . Ally Attacks . | . . . Total Damage . | . . . Kills . | . . . Allies Corrupted . | . . . Allies Melted . | . . . Intel | -11 -10 -10 ------- Run | Scr Mat Min Robot Analysis Total 2 | . 2 . Derelict Logs Recovered . | . . . Drone Launches . | . . . Drone Recoveries . | . . . Exploration | -11 -10 -10 ------------- Run | Scr Mat Min Turns Passed 1267 | 72 1005 190 Spaces Moved 582 | 48 490 44 Core 20 | 20 . . Treads 562 | 28 490 44 Legs . | . . . Wheels . | . . . Hover . | . . . Flight . | . . . Fastest Speed 50 | 50 160 160 Average Speed 157 | 128 160 160 Slowest Speed 160 | 160 160 160 Overloaded Moves . | . . . Propulsion Burnouts . | . . . Robots Hopped . | . . . Cave-ins Triggered . | . . . Exploration Rate (%) 27 | 4 68 10 Regions Visited 2 Branch Regions 1 Pre-discovered Areas . | . . . Known Exits Taken . | . . . Unknown Exits Taken 2 | 1 1 . Scrap Searched . | . . . Spaces Dug . | . . . Terrain Destroyed 32 | . 32 . Melee . | . . . Projectile . | . . . AOE 32 | . 32 . Terrain Rammed . | . . . Walls Destroyed . | . . . Machines Disabled . | . . . Actions | -11 -10 -10 --------- Run | Scr Mat Min Total 817 | 56 613 148 Wait 118 | . 25 93 Move 580 | 47 489 44 Hop . | . . . Pick Up 14 | 3 10 1 Fast Attach 9 | 5 4 . Attach 4 | . 2 2 Detach . | . . . Swap 7 | . 7 . Drop 7 | 1 6 . Fire 73 | . 65 8 Melee . | . . . Ram . | . . . Kick . | . . . Crush 5 | . 5 . Escape Stasis . | . . . Rewire . | . . . Trap . | . . . Miscellaneous . | . . . Route ------- -11/Scrapyard -10/Materials (discovered 4 exits: [*Mat x2] / [*Min x2]) -10/Mines History --------- Turn | Location | Event 14 | -11/Scrapyard | Discovered new exit (range 14) 73 | -11/Scrapyard | Entered Materials 239 | -10/Materials | Discovered new exit (range 13) 323 | -10/Materials | Build established: Mutant 572 | -10/Materials | Discovered new exit (range 14) 794 | -10/Materials | Discovered new exit (range 3) 831 | -10/Materials | Central database locked down 883 | -10/Materials | Discovered new exit (range 9) 1078 | -10/Materials | Entered Mines 1091 | -10/Mines | Assembled infested the area 1096 | -10/Mines | Assisted by a Guerilla fighting off Assembled 1261 | -10/Mines | Core integrity fell below 50% 1264 | -10/Mines | Core integrity fell below 20% 1268 | -10/Mines | Destroyed by D-53 Grenadier with Mini Grenade Launcher Last Messages --------------- 01087_ G-47 Trooper destroyed. 01091_ ALERT: Infestation in the mines, dispatching Demolisher response squad. 01092_ K-01 Serf collects debris. 01092_ Acquired Heat Sink. 01096_ A derelict emerges from the shadows: "You need to get out of here! I've been tracking a group of Assembled to figure out where they're coming from, and they're closing on this area, come on!" 01097_ K-01 Serf collects debris. 01243_ Acquired 24 matter. 01249_ Acquired 36 matter. 01255_ The unstable cave ceiling collapses. 01257_ Lgt. Treads destroyed. 01260_ Imp. Ion Engine destroyed. 01260_ Beam Rifle destroyed. 01262_ D-53 Grenadier suffers critical hit (Burn). 01263_ Beam Rifle destroyed. 01265_ The unstable cave ceiling collapses. 01266_ D-53 Grenadier suffers critical hit (Burn). 01267_ D-53 Grenadier overheating. Map ----- +----------------------------------------------------+ | | | | | | | | | | | | | | | | | | | | | | | | | | | | | ?????????????????????????????????????????????????? | | ?????????????????????????????????????????????????? | | ????????????####?????????????????????????????????? | | ???????????## ###???????????????????????????????? | | ???????????# ######??????????????????????????? | | ???????????# =% #??????????????????????????? | | ???????????## % ### #######??????#?????????????? | | ????????????# # ##?# # # ###?? ### ?????????? | | ?##########?# ## #??# # ???????? | | ?# #?# ## #??# ????????? | | ?# ### ## #??# d #????????????? | | ?#""" #??# @ d#?????????????? | | ?#""" ########??# ##????????????? | | ?#""" #?????????# #????????????? | | ?# #?????????## # #???????????? | | ?##########??????????## # ##?? ##???????????? | | ??????????????????????###### #??????????????????? | | ???????????????????????????? ??????????????????? | | ?????????????????????????????#? ?????????????????? | | ???????????????????????????????? ????????????????? | | ????????????????????????????????? ???????????????? | | ?????????????????????????????????? ??????????????? | | ???????????????????????????????????#?????????????? | | ?????????????????????????????????????????????????? | | ?????????????????????????????????????????????????? | | ?????????????????????????????????????????????????? | | ?????????????????????????????????????????????????? | | ?????????????????????????????????????????????????? | | ?????????????????????????????????????????????????? | | ?????????????????????????????????????????????????? | | ?????????????????????????????????????????????????? | | ?????????????????????????????????????????????????? | | ?????????????????????????????????????????????????? | | ?????????????????????????????????????????????????? | | ?????????????????????????????????????????????????? | | ?????????????????????????????????????????????????? | +----------------------------------------------------+ Best States ------------- Heat Dissipation 35 Energy Generation 12 Energy Capacity 265 Matter Stores 300 Matter Capacity 300 Sight Range 16 Terrain Scan Density 10 Evasion (%) 40 Recoil Reduction 2 Item Schematics ----------------- None Robot Schematics ------------------ None Fabricated ------------ Nothing Alien Tech Used ----------------- None Achievements -------------- None Challenges ------------ None Game ------ Seed ChromaticRemoteNukerbomber Manual? 0 Play Time 00:06:40 Cumulative 1551.1 hours Start 2022.08.03 @ 16:58:33 End 2022.08.03 @ 17:04:18 Sessions 1 Manual Loads 0 Difficulty Rogue Special Mode None Game No. 546 Rogue 546 Adventurer 0 Explorer 0 Win Type - Total 111 Types 24/12/45/6/1/2/19/1/1 Lore% 97 Gallery% 97 Achievement% 86 Wizard Run 0 Options --------- ASCII 0 Keyboard 0 Movement Numpad Keybinds 0 Fullscreen 1 Font 18/SmallcapsGlow Map View 76x50 Tactical HUD 1 Map Filters NONE Filters NONE Steam 1 RUN: 129f4c72-873a-47b1-8ecb-64cdabfed27a